[Event "Balkan Youth Online-ch 2020"]
[Site "Online"]
[Date "2020.10.31"]
[Round "6.7"]
[White "Alimema, Alvin"]
[Black "Stefanoski, Daniel"]
[Result "0-1"]
[ECO "C50"]
[WhiteElo "1110"]
[BlackElo "1129"]
[Annotator "NA RC"]
[PlyCount "102"]
[EventDate "2020.10.31"]
[EventType "swiss"]
[SourceTitle "playchess.com"]
[Source "ChessBase"]
[SourceQuality "1"]
[TimeControl "1500+5"]

1. e4 {[%emt 0:00:00]} e5 {[%emt 0:00:00]} 2. Nf3 {[%emt 0:00:00]} Nc6 {[%emt 0:00:00]} 3. Bc4 {[%emt 0:00:00]} Bc5 {[%emt 0:00:00]} 4. d3 {[%emt 0:00:00]} Nf6 {[%emt 0:00:00]} 5. Nc3 {[%emt 0:00:00]} h6 {[%emt 0:00:00]} 6. Be3 {[%emt 0:00:00]} d6 {[%emt 0:00:00]} 7. h3 {[%emt 0:00:00]} Bb6 {[%emt 0:00:04]} 8. Qd2 {[%emt 0:00:02]} O-O {[%emt 0:00:00]} 9. g4 {[%emt 0:00:03]} Nd4 {[%emt 0:00:58]} 10. Nh4 {[%emt 0:02:49]} Nxe4 {[%emt 0:00:42]} 11. Nxe4 {[%emt 0:01:09]} Qxh4 {[%emt 0:00:07]} 12. Bxd4 {[%emt 0:00:10]} Bxd4 {[%emt 0:00:09]} 13. c3 {[%emt 0:00:05]} Bb6 {[%emt 0:00:04]} 14. Ng3 {[%emt 0:00:03]} Bd7 {[%emt 0:01:07]} 15. O-O-O {[%emt 0:01:55]} Bc6 {[%emt 0:00:26]} 16. Rhg1 {[%emt 0:02:22]} Bf3 {[%emt 0:01:32]} 17. Rdf1 {[%emt 0:01:08]} Qxh3 {[%emt 0:00:39]} 18. Nf5 {[%emt 0:01:15]} d5 {[%emt 0:02:00]} 19. Bxd5 {[%emt 0:00:44]} Bxd5 {[%emt 0:00:28]} 20. Ne7+ {[%emt 0:00:00]} Kh8 {[%emt 0:00:00]} 21. Nxd5 {[%emt 0:00:00]} Rad8 {[%emt 0:00:22]} 22. Rh1 {[%emt 0:02:51]} Qxh1 {[%emt 0:01:27]} 23. Rxh1 {[%emt 0:00:00]} Rxd5 {[%emt 0:00:00]} 24. g5 {[%emt 0:00:32]} h5 {[%emt 0:01:04]} 25. Rxh5+ {[%emt 0:01:35]} Kg8 {[%emt 0:00:00]} 26. Qe2 {[%emt 0:00:48]} Rfd8 {[%emt 0:00:24]} 27. Kc2 {[%emt 0:01:10]} Rxd3 {[%emt 0:01:12]} 28. Qxd3 {[%emt 0:00:00]} Rxd3 {[%emt 0:00:00]} 29. Kxd3 {[%emt 0:00:00]} Bxf2 {[%emt 0:00:00]} 30. Ke4 {[%emt 0:00:27]} Bg3 {[%emt 0:00:08]} 31. c4 {[%emt 0:02:57]} Kf8 {[%emt 0:00:28]} 32. Rh8+ {[%emt 0:00:13]} Ke7 {[%emt 0:00:00]} 33. Rc8 {[%emt 0:00:15]} Kd7 {[%emt 0:00:07]} 34. Rg8 {[%emt 0:00:25]} g6 {[%emt 0:00:49]} 35. Rf8 {[%emt 0:00:52]} Ke6 {[%emt 0:00:25]} 36. Re8+ {[%emt 0:00:28]} Kd7 {[%emt 0:00:12]} 37. Rxe5 {[%emt 0:01:23]} Bxe5 {[%emt 0:00:00]} 38. Kxe5 {[%emt 0:00:00]} Ke7 {[%emt 0:00:00]} 39. c5 {[%emt 0:00:01]} b6 {[%emt 0:00:04]} 40. b4 {[%emt 0:01:16]} bxc5 {[%emt 0:00:06]} 41. bxc5 {[%emt 0:00:00]} c6 {[%emt 0:00:00]} 42. a3 {[%emt 0:00:33]} a6 {[%emt 0:00:00]} 43. a4 {[%emt 0:00:05]} a5 {[%emt 0:00:00]} 44. Kd4 {[%emt 0:00:12]} Ke6 {[%emt 0:00:00]} 45. Ke4 {[%emt 0:00:00]} f5+ {[%emt 0:00:21]} 46. Kd4 {[%emt 0:00:24]} f4 {[%emt 0:00:00]} 47. Ke4 {[%emt 0:00:00]} f3 {[%emt 0:00:00]} 48. Kxf3 {[%emt 0:00:00]} Kf5 {[%emt 0:00:00]} 49. Kg3 {[%emt 0:00:00]} Kxg5 {[%emt 0:00:00]} 50. Kf3 {[%emt 0:00:00]} Kh4 {[%emt 0:00:00]} 51. Kg2 {[%emt 0:00:00]} Kg4 {[%emt 0:00:00]} 0-1